fUSD/lending_fUSD_20240327
["ID","MTS","AMOUNT","RATE_DAILY","PERIOD"]
[320783386,1711555854269,-500.0,0.00054246,120]
[320783387,1711555854279,-472.89699679,0.00054246,120]
[320783388,1711555854289,-151.0,0.00054246,30]
[320783389,1711555854298,-2237.32,0.00054246,120]
[320783390,1711555854307,-151.0,0.00054246,120]
[320783391,1711555854317,-500.0,0.00054246,120]
[320783392,1711555854326,-500.0,0.00054246,120]
[320783393,1711555854335,-1535.75,0.00054246,120]
[320783394,1711555854345,-1282.94,0.00054246,120]
[320783395,1711555854354,-500.0,0.00054246,120]
[320783396,1711555854363,-336.7,0.00054246,120]
[320783397,1711555854372,-500.0,0.00054246,120]
[320783398,1711555854382,-500.0,0.00054246,120]
[320783399,1711555854391,-500.0,0.00054246,120]
[320783400,1711555854400,-1256.72,0.00054246,120]
[320783401,1711555854409,-436.51,0.00054246,120]
[320783402,1711555854419,-500.0,0.00054246,120]
[320783403,1711555854429,-500.0,0.00054246,120]
[320783404,1711555854438,-525.11,0.00054246,120]
[320783405,1711555854448,-680.33,0.00054246,120]
[320783406,1711555854457,-500.0,0.00054246,120]
[320783407,1711555854470,-505.63643803,0.00054246,120]
[320783408,1711555854479,-500.0,0.00054246,120]
[320783409,1711555854489,-921.28208376,0.00054246,120]
[320783410,1711555854499,-500.0,0.00054246,120]
[320783411,1711555854509,-656.15,0.00054246,120]
[320783412,1711555854518,-500.0,0.00054246,120]
[320783413,1711555854528,-500.0,0.00054246,120]
[320783414,1711555854538,-1752.52,0.00054246,120]
[320783415,1711555854547,-151.0,0.00054246,120]
[320783416,1711555854557,-500.0,0.00054246,120]
[320783417,1711555854566,-742.87,0.00054246,120]
[320783418,1711555854575,-500.0,0.00054246,120]
[320783419,1711555854584,-500.0,0.00054246,120]
[320783420,1711555854594,-526.42,0.00054246,120]
[320783421,1711555854603,-500.0,0.00054246,120]
[320783422,1711555854612,-151.0,0.00054246,120]
[320783423,1711555854622,-500.0,0.00054246,120]
[320783424,1711555854631,-828.26,0.00054246,120]
[320783425,1711555854640,-200.35835419,0.00054246,120]
[320783426,1711555854650,-500.0,0.00054246,120]
[320783427,1711555854659,-500.0,0.00054246,120]
[320783428,1711555854669,-500.0,0.00054246,120]
[320783429,1711555854678,-500.0,0.00054246,120]
[320783430,1711555854687,-500.0,0.00054246,120]
[320783431,1711555854696,-500.0,0.00054246,120]
[320783432,1711555854706,-500.0,0.00054246,120]
[320783433,1711555854717,-500.0,0.00054246,120]
[320783434,1711555854726,-500.0,0.00054246,120]
[320783435,1711555854735,-500.0,0.00054246,120]
[320783436,1711555854744,-672.95,0.00054246,120]
[320783437,1711555854753,-500.0,0.00054246,120]
[320783438,1711555854762,-500.0,0.00054246,120]
[320783439,1711555854771,-500.0,0.00054246,120]
[320783440,1711555854780,-500.0,0.00054246,120]
[320783441,1711555854790,-500.0,0.00054246,120]
[320783442,1711555854798,-500.0,0.00054246,120]
[320783443,1711555854808,-894.45,0.00054246,120]
[320783444,1711555854817,-500.0,0.00054246,120]
[320783445,1711555854826,-500.0,0.00054246,120]
[320783446,1711555854835,-500.0,0.00054246,120]
[320783447,1711555854845,-500.0,0.00054246,120]
[320783448,1711555854854,-1596.51,0.00054246,120]
[320783449,1711555854864,-500.0,0.00054246,120]
[320783450,1711555854873,-500.0,0.00054246,120]
[320783451,1711555854943,-1251.29,0.00054246,120]
[320783452,1711555854952,-500.0,0.00054246,120]
[320783453,1711555854961,-500.0,0.00054246,120]
[320783454,1711555854970,-335.37387455,0.00054246,120]
[320783455,1711555854979,-918.77,0.00054246,120]
[320783456,1711555854988,-500.0,0.00054246,120]
[320783457,1711555854997,-500.0,0.00054246,120]
[320783458,1711555855007,-633.03,0.00054246,120]
[320783459,1711555855017,-500.0,0.00054246,120]
[320783460,1711555855026,-330.73264937,0.00054246,120]
[320783461,1711555855035,-524.07,0.00054246,120]
[320783462,1711555855045,-500.0,0.00054246,120]
[320783463,1711555855054,-752.1,0.00054246,120]
[320783464,1711555855063,-500.0,0.00054246,120]
[320783465,1711555855072,-500.0,0.00054246,60]
[320783466,1711555855082,-500.0,0.00054246,120]
[320783467,1711555855092,-500.0,0.00054246,120]
[320783468,1711555855102,-500.0,0.00054246,120]
[320783469,1711555855117,-500.0,0.00054246,120]
[320783470,1711555855126,-500.0,0.00054246,120]
[320783471,1711555855135,-813.84,0.00054246,120]
[320783472,1711555855144,-500.0,0.00054246,120]
[320783473,1711555855154,-684.77,0.00054246,120]
[320783474,1711555855163,-500.0,0.00054246,120]
[320783475,1711555855172,-500.0,0.00054246,120]
[320783476,1711555855182,-500.0,0.00054246,120]
[320783477,1711555855191,-500.0,0.00054246,120]
[320783478,1711555855201,-513.98,0.00054246,120]
[320783479,1711555855212,-500.0,0.00054246,120]
[320783480,1711555855222,-500.0,0.00054246,120]
[320783481,1711555855231,-500.0,0.00054246,120]
[320783482,1711555855240,-500.0,0.00054246,120]
[320783483,1711555855250,-500.0,0.00054246,120]
[320783484,1711555855259,-500.0,0.00054246,120]
[320783485,1711555855268,-593.15,0.00054246,120]
[320783486,1711555855278,-862.93,0.00054246,120]
[320783487,1711555855288,-500.0,0.00054246,120]
[320783488,1711555855297,-500.0,0.00054246,120]
[320783489,1711555855307,-1457.69,0.00054246,120]
[320783490,1711555855316,-605.69,0.00054246,120]
[320783491,1711555855326,-500.0,0.00054246,120]
[320783492,1711555855335,-500.0,0.00054246,120]
[320783493,1711555855345,-500.0,0.00054246,120]
[320783494,1711555855354,-500.0,0.00054246,120]
[320783495,1711555855363,-500.0,0.00054246,120]
[320783496,1711555855372,-517.56,0.00054246,120]
[320783497,1711555855381,-1182.15,0.00054246,120]
[320783498,1711555855390,-500.0,0.00054246,120]
[320783499,1711555855399,-500.0,0.00054246,120]
[320783500,1711555855408,-778.34,0.00054246,120]
[320783501,1711555855418,-225.12,0.00054246,120]
[320783502,1711555855428,-825.5,0.00054246,120]
[320783503,1711555855437,-634.58063851,0.00054246,120]
[320783504,1711555855446,-500.0,0.00054246,120]
[320783505,1711555855456,-500.0,0.00054246,120]
[320783506,1711555855466,-1267.49,0.00054246,120]
[320783507,1711555855475,-2648.21,0.00054246,120]
[320783508,1711555855484,-500.0,0.00054246,120]
[320783509,1711555855493,-500.0,0.00054246,120]
[320783510,1711555855503,-151.0,0.00054246,120]
[320783511,1711555855513,-500.0,0.00054246,120]
[320783512,1711555855523,-500.0,0.00054246,120]
[320783513,1711555855532,-500.0,0.00054246,120]
[320783514,1711555855541,-500.0,0.00054246,120]
[320783515,1711555855551,-500.0,0.00054246,120]
[320783516,1711555855560,-500.0,0.00054246,120]
[320783517,1711555855569,-500.0,0.00054246,120]
[320783518,1711555855580,-839.35,0.00054246,120]
[320783519,1711555855589,-500.0,0.00054246,120]
[320783520,1711555855600,-500.0,0.00054246,120]
[320783521,1711555855610,-500.0,0.00054246,120]
[320783522,1711555855619,-1135.8,0.00054246,120]
[320783523,1711555855628,-500.0,0.00054246,120]
[320783524,1711555855637,-500.0,0.00054246,120]
[320783525,1711555855646,-541.72,0.00054246,120]
[320783526,1711555855655,-550.01,0.00054246,120]
[320783527,1711555855664,-500.0,0.00054246,120]
[320783528,1711555855674,-500.0,0.00054246,120]
[320783529,1711555855683,-500.0,0.00054246,120]
[320783530,1711555855693,-500.0,0.00054246,120]
[320783531,1711555855703,-500.0,0.00054246,120]
[320783532,1711555855714,-500.0,0.00054246,120]
[320783533,1711555855723,-1262.44,0.00054246,120]
[320783534,1711555855732,-500.0,0.00054246,120]
[320783535,1711555855741,-500.0,0.00054246,120]
[320783536,1711555855750,-533.52930091,0.00054246,120]
[320783537,1711555855759,-500.0,0.00054246,120]
[320783538,1711555855768,-804.47,0.00054246,120]
[320783539,1711555855777,-500.0,0.00054246,120]
[320783540,1711555855786,-1315.49,0.00054246,120]
[320783541,1711555855796,-500.0,0.00054246,120]
[320783542,1711555855812,-500.0,0.00054246,120]
[320783543,1711555855822,-500.0,0.00054246,120]
[320783544,1711555855831,-804.61,0.00054246,120]
[320783545,1711555855841,-500.0,0.00054246,120]
[320783546,1711555855850,-680.65,0.00054246,120]
[320783547,1711555855859,-500.0,0.00054246,120]
[320783548,1711555855868,-500.0,0.00054246,120]
[320783549,1711555855877,-500.0,0.00054246,120]
[320783550,1711555855887,-500.0,0.00054246,120]
[320783551,1711555855896,-500.0,0.00054246,120]
[320783552,1711555855907,-500.0,0.00054246,120]
[320783553,1711555855916,-500.0,0.00054246,120]
[320783554,1711555855926,-903.57,0.00054246,120]
[320783555,1711555855935,-500.0,0.00054246,120]
[320783556,1711555855945,-500.0,0.00054246,120]
[320783557,1711555855954,-1352.94,0.00054246,120]
[320783558,1711555855965,-500.0,0.00054246,120]
[320783559,1711555855975,-500.0,0.00054246,120]
[320783560,1711555855984,-500.0,0.00054246,120]
[320783561,1711555855994,-500.0,0.00054246,120]
[320783562,1711555856003,-500.0,0.00054246,120]
[320783563,1711555856012,-500.0,0.00054246,120]
[320783564,1711555856022,-635.82,0.00054246,120]
[320783565,1711555856032,-624.13,0.00054246,120]
[320783566,1711555856041,-789.97,0.00054246,120]
[320783567,1711555856050,-477.23,0.00054246,120]
[320783568,1711555856060,-500.0,0.00054246,120]
[320783569,1711555856073,-500.0,0.00054246,120]
[320783570,1711555856083,-500.0,0.00054246,120]
[320783571,1711555856092,-500.0,0.00054246,120]
[320783572,1711555856102,-225.7,0.00054246,120]
[320783573,1711555856112,-500.0,0.00054246,120]
[320783574,1711555856122,-500.0,0.00054246,120]
[320783575,1711555856131,-500.0,0.00054246,120]
[320783576,1711555856142,-500.0,0.00054246,120]
[320783577,1711555856151,-500.0,0.00054246,120]
[320783578,1711555856160,-500.0,0.00054246,120]
[320783579,1711555856170,-500.0,0.00054246,120]
[320783580,1711555856180,-500.0,0.00054246,120]
[320783581,1711555856189,-500.0,0.00054246,120]
[320783582,1711555856199,-500.0,0.00054246,120]
[320783583,1711555856210,-532.76,0.00054246,120]
[320783584,1711555856222,-500.0,0.00054246,120]
[320783585,1711555856232,-500.0,0.00054246,120]
[320783586,1711555856241,-500.0,0.00054246,120]
[320783587,1711555856251,-500.0,0.00054246,120]
[320783588,1711555856263,-500.0,0.00054246,120]
[320783589,1711555856273,-500.0,0.00054246,120]
[320783590,1711555856283,-672.68,0.00054246,30]
[320783591,1711555856293,-500.0,0.00054246,120]
[320783592,1711555856302,-500.0,0.00054246,120]
[320783593,1711555856311,-500.0,0.00054246,120]
[320783594,1711555856320,-500.0,0.00054246,120]
[320783595,1711555856330,-500.0,0.00054246,120]
[320783596,1711555856339,-500.0,0.00054246,120]
[320783597,1711555856352,-500.0,0.00054246,120]
[320783598,1711555856361,-500.0,0.00054246,120]
[320783599,1711555856370,-500.0,0.00054246,120]
[320783600,1711555856380,-500.0,0.00054246,120]
[320783601,1711555856389,-500.0,0.00054246,120]
[320783602,1711555856398,-500.0,0.00054246,120]
[320783603,1711555856407,-500.0,0.00054246,120]
[320783604,1711555856417,-500.0,0.00054246,120]
[320783605,1711555856426,-500.0,0.00054246,120]
[320783606,1711555856436,-716.44,0.00054246,120]
[320783607,1711555856445,-527.07,0.00054246,120]
[320783608,1711555856455,-500.0,0.00054246,120]
[320783609,1711555856465,-500.0,0.00054246,120]
[320783610,1711555856474,-337.96026789,0.00054246,120]
[320783611,1711555856484,-524.76,0.00054246,120]
[320783612,1711555856494,-500.0,0.00054246,120]
[320783613,1711555856503,-696.70300889,0.00054246,4]
[320783614,1711555856513,-500.0,0.00054246,120]
[320783615,1711555856522,-500.0,0.00054246,120]
[320783616,1711555856532,-500.0,0.00054246,2]
[320783617,1711555856541,-500.0,0.00054246,120]
[320783618,1711555856551,-500.0,0.00054246,120]
[320783619,1711555856560,-500.0,0.00054246,120]
[320783620,1711555856569,-804.62,0.00054246,120]
[320783621,1711555856579,-1195.92,0.00054246,120]
[320783622,1711555856588,-500.0,0.00054246,120]
[320783623,1711555856598,-500.0,0.00054246,120]
[320783624,1711555856606,-632.15,0.00054246,120]
[320783625,1711555856615,-500.0,0.00054246,120]
[320783626,1711555856624,-500.0,0.00054246,120]
[320783627,1711555856635,-500.0,0.00054246,120]
[320783628,1711555856644,-500.0,0.00054246,120]
[320783629,1711555856653,-504.69,0.00054246,120]
[320783630,1711555856663,-500.0,0.00054246,120]
[320783631,1711555856673,-500.0,0.00054246,120]
[320783632,1711555856682,-500.0,0.00054246,120]
[320783633,1711555856692,-500.0,0.00054246,120]
[320783634,1711555856702,-392.00836637,0.00054246,120]
[320783635,1711555856711,-634.49,0.00054246,120]
[320783636,1711555856722,-500.0,0.00054246,120]
[320783637,1711555856732,-1171.88,0.00054246,120]
[320783638,1711555856741,-34816.52,0.00054246,120]
[320783639,1711555856751,-331.34,0.00054246,2]
[320783640,1711555856760,-500.0,0.00054246,120]
[320783641,1711555856770,-500.0,0.00054246,120]
[320783642,1711555856780,-244.25,0.00054246,120]
[320783643,1711555856789,-500.0,0.00054246,120]
[320783644,1711555856799,-500.0,0.00054246,120]
[320783645,1711555856808,-654.53,0.00054246,120]
[320783646,1711555856818,-1203.84,0.00054246,120]
[320783647,1711555856827,-500.0,0.00054246,120]
[320783648,1711555856837,-516.63,0.00054246,120]
[320783649,1711555856846,-500.0,0.00054246,120]
[320783650,1711555856856,-500.0,0.00054246,30]
[320783651,1711555856865,-500.0,0.00054246,120]
[320783652,1711555856875,-506.76421852,0.00054246,120]
[320783653,1711555856885,-500.0,0.00054246,120]
[320783654,1711555856895,-500.0,0.00054246,120]
[320783655,1711555856905,-554.46,0.00054246,120]
[320783656,1711555856915,-500.0,0.00054246,120]
[320783657,1711555856924,-500.0,0.00054246,120]
[320783658,1711555856934,-500.0,0.00054246,120]
[320783659,1711555856944,-691.32,0.00054246,120]
[320783660,1711555856953,-500.0,0.00054246,120]
[320783661,1711555856965,-603.47995227,0.00054246,120]
[320783662,1711555856975,-500.0,0.00054246,120]
[320783663,1711555856985,-500.0,0.00054246,120]
[320783664,1711555856995,-829.77,0.00054246,120]
[320783665,1711555857004,-5690.61,0.00054246,120]
[320783666,1711555857013,-500.0,0.00054246,120]
[320783667,1711555857023,-500.0,0.00054246,120]
[320783668,1711555857033,-500.0,0.00054246,120]
[320783669,1711555857042,-612.26,0.00054246,120]
[320783670,1711555857051,-500.0,0.00054246,120]
[320783671,1711555857060,-524.6,0.00054246,120]
[320783672,1711555857070,-500.0,0.00054246,120]
[320783673,1711555857080,-500.0,0.00054246,120]
[320783674,1711555857089,-500.0,0.00054246,120]
[320783675,1711555857099,-500.0,0.00054246,120]
[320783676,1711555857109,-1078.44,0.00054246,120]
[320783677,1711555857118,-500.0,0.00054246,120]
[320783678,1711555857127,-500.0,0.00054246,120]
[320783679,1711555857138,-1263.56,0.00054246,120]
[320783680,1711555857147,-558.73,0.00054246,120]
[320783681,1711555857157,-500.0,0.00054246,120]
[320783682,1711555857172,-500.0,0.00054246,120]
[320783683,1711555857186,-500.0,0.00054246,120]
[320783684,1711555857195,-184.888124,0.00054246,120]
[320783685,1711555857204,-500.0,0.00054246,120]
[320783686,1711555857215,-500.0,0.00054246,120]
[320783687,1711555857224,-184.888124,0.00054246,120]
[320783688,1711555857233,-500.0,0.00054246,120]
[320783689,1711555857243,-514.15,0.00054246,120]
[320783690,1711555857253,-500.0,0.00054246,120]
[320783691,1711555857262,-500.0,0.00054246,120]
[320783692,1711555857271,-518.04,0.00054246,120]
[320783693,1711555857281,-500.0,0.00054246,120]
[320783694,1711555857291,-500.0,0.00054246,120]
[320783695,1711555857301,-500.0,0.00054246,120]
[320783696,1711555857311,-500.0,0.00054246,120]
[320783697,1711555857321,-500.0,0.00054246,120]
[320783698,1711555857331,-1339.03,0.00054246,120]
[320783699,1711555857341,-500.0,0.00054246,120]
[320783700,1711555857350,-2819.83,0.00054246,120]
[320783701,1711555857360,-377.35,0.00054246,120]
[320783702,1711555857369,-1392.63,0.00054246,120]
[320783703,1711555857379,-4237.53,0.00054246,120]
[320783704,1711555857389,-1021.97,0.00054246,120]
[320783705,1711555857398,-500.0,0.00054246,120]
[320783706,1711555857407,-500.0,0.00054246,120]
[320783707,1711555857417,-500.0,0.00054246,120]
[320783708,1711555857427,-500.0,0.00054246,120]
[320783709,1711555857436,-500.0,0.00054246,120]
[320783710,1711555857446,-500.0,0.00054246,120]
[320783711,1711555857455,-23692.63,0.00054246,120]
[320783712,1711555857466,-625.49,0.00054246,120]
[320783713,1711555857476,-500.0,0.00054246,120]
[320783714,1711555857486,-753.14,0.00054246,120]
[320783715,1711555857495,-500.0,0.00054246,120]
[320783716,1711555857505,-500.0,0.00054246,120]
[320783717,1711555857515,-6105.13,0.00054246,120]
[320783718,1711555857524,-691.69,0.00054246,60]
[320783719,1711555857533,-500.0,0.00054246,120]
[320783720,1711555857542,-500.0,0.00054246,120]
[320783721,1711555857551,-500.0,0.00054246,120]
[320783722,1711555857561,-500.0,0.00054246,120]
[320783723,1711555857570,-583.83,0.00054246,120]
[320783724,1711555857579,-151.0,0.00054246,120]
[320783725,1711555857589,-659.64,0.00054246,120]
[320783726,1711555857598,-500.0,0.00054246,120]
[320783727,1711555857607,-500.0,0.00054246,7]
[320783728,1711555857617,-500.0,0.00054246,120]
[320783729,1711555857627,-910.28,0.00054246,120]
[320783730,1711555857636,-500.0,0.00054246,120]
[320783731,1711555857646,-564.94,0.00054246,120]
[320783732,1711555857655,-2199.55,0.00054246,120]
[320783733,1711555857664,-500.0,0.00054246,120]
[320783734,1711555857674,-500.0,0.00054246,120]
[320783735,1711555857684,-520.74,0.00054246,120]
[320783736,1711555857694,-673.28,0.00054246,120]
[320783737,1711555857703,-500.0,0.00054246,120]
[320783738,1711555857713,-500.0,0.00054246,120]
[320783739,1711555857723,-500.0,0.00054246,120]
[320783740,1711555857732,-500.0,0.00054246,120]
[320783741,1711555857742,-5595.4,0.00054246,120]
[320783742,1711555857751,-500.0,0.00054246,120]
[320783743,1711555857760,-500.0,0.00054246,120]
[320783744,1711555857770,-744.21,0.00054246,120]
[320783745,1711555857779,-500.0,0.00054246,120]
[320783746,1711555857788,-569.2,0.00054246,120]
[320783747,1711555857798,-921.69,0.00054246,120]
[320783748,1711555857807,-500.0,0.00054246,120]
[320783749,1711555857817,-500.0,0.00054246,120]
[320783750,1711555857826,-500.0,0.00054246,120]
[320783751,1711555857836,-500.0,0.00054246,120]
[320783752,1711555857846,-500.0,0.00054246,120]
[320783753,1711555857856,-500.0,0.00054246,120]
[320783754,1711555857866,-634.42593384,0.00054246,4]
[320783755,1711555857876,-500.0,0.00054246,120]
[320783756,1711555857888,-500.0,0.00054246,120]
[320783757,1711555857898,-551.59,0.00054246,120]
[320783758,1711555857907,-523.14,0.00054246,120]
[320783759,1711555857917,-500.0,0.00054246,120]
[320783760,1711555857926,-3703.43,0.00054246,120]
[320783761,1711555857935,-1102.59,0.00054246,120]
[320783762,1711555857945,-500.0,0.00054246,120]
[320783763,1711555857954,-689.32,0.00054246,120]
[320783764,1711555857965,-547.25,0.00054246,120]
[320783765,1711555857974,-500.0,0.00054246,120]
[320783766,1711555857984,-500.0,0.00054246,120]
[320783767,1711555857993,-701.23,0.00054246,120]
[320783768,1711555858002,-500.0,0.00054246,120]
[320783769,1711555858012,-2464.06,0.00054246,120]
[320783770,1711555858021,-15875.85,0.00054246,120]
[320783771,1711555858030,-500.0,0.00054246,120]
[320783772,1711555858040,-589.17,0.00054246,120]
[320783773,1711555858051,-500.0,0.00054246,120]
[320783774,1711555858060,-500.0,0.00054246,120]
[320783775,1711555858069,-500.0,0.00054246,120]
[320783776,1711555858079,-1937.89,0.00054246,120]
[320783777,1711555858088,-500.0,0.00054246,120]
[320783778,1711555858097,-500.0,0.00054246,120]
[320783779,1711555858109,-598.88,0.00054246,120]
[320783780,1711555858119,-1230.88,0.00054246,120]
[320783781,1711555858128,-2440.25,0.00054246,120]
[320783782,1711555858137,-1859.92,0.00054246,120]
[320783783,1711555858147,-500.0,0.00054246,120]
[320783784,1711555858157,-930.82,0.00054246,120]
[320783785,1711555858166,-500.0,0.00054246,120]
[320783786,1711555858175,-649.74058653,0.00054246,120]
[320783787,1711555858184,-912.34,0.00054246,120]
[320783788,1711555858194,-1000.9,0.00054246,120]
[320783789,1711555858203,-769.7,0.00054246,120]
[320783790,1711555858213,-194.51097774,0.00054246,120]
[320783791,1711555858223,-500.0,0.00054246,120]
[320783792,1711555858232,-500.0,0.00054246,120]
[320783793,1711555858242,-2049.42,0.00054246,120]
[320783794,1711555858252,-500.0,0.00054246,120]
[320783795,1711555858263,-151.09,0.00054246,120]
[320783796,1711555858274,-6420.03,0.00054246,120]
[320783797,1711555858285,-500.0,0.00054246,120]
[320783798,1711555858296,-54111.41,0.00054246,120]
[320783799,1711555858310,-587.29,0.00054246,120]
[320783800,1711555858322,-500.0,0.00054246,120]
[320783801,1711555858333,-500.0,0.00054246,120]
[320783802,1711555858344,-983.43,0.00054246,120]
[320783803,1711555858355,-500.0,0.00054246,120]
[320783804,1711555858367,-4144.22,0.00054246,120]
[320783805,1711555858379,-665.42,0.00054246,120]
[320783806,1711555858390,-2706.27,0.00054246,120]
[320783807,1711555858407,-1571.18,0.00054246,120]
[320783808,1711555858418,-566.18,0.00054246,120]
[320783809,1711555858428,-500.0,0.00054246,120]
[320783810,1711555858440,-500.0,0.00054246,120]
[320783811,1711555858450,-2551.37,0.00054246,120]
[320783812,1711555858461,-500.0,0.00054246,120]
[320783813,1711555858476,-500.0,0.00054246,120]
[320783814,1711555858487,-500.0,0.00054246,120]
[320783815,1711555858497,-4754.25,0.00054246,120]
[320783816,1711555858509,-500.0,0.00054246,120]
[320783817,1711555858520,-500.0,0.00054246,120]
[320783818,1711555858532,-411.01720725,0.00054246,120]
[320783819,1711555858543,-4872.03,0.00054246,120]
[320783820,1711555858554,-1087.19,0.00054246,120]
[320783821,1711555858565,-699.37,0.00054246,120]
[320783822,1711555858576,-2124.69,0.00054246,120]
[320783823,1711555858588,-500.0,0.00054246,120]
[320783824,1711555858600,-500.0,0.00054246,120]
[320783825,1711555858611,-500.0,0.00054246,120]
[320783826,1711555858623,-500.0,0.00054246,120]
[320783827,1711555858635,-966.35,0.00054246,120]
[320783828,1711555858647,-5561.81,0.00054246,120]
[320783829,1711555858658,-1284.1,0.00054246,120]
[320783830,1711555858671,-2741.47,0.00054246,120]
[320783831,1711555858683,-711.34,0.00054246,120]
[320783832,1711555858694,-1876.3,0.00054246,120]
[320783833,1711555858706,-500.0,0.00054246,120]
[320783834,1711555858719,-2598.47,0.00054246,120]
[320783835,1711555858730,-373.37723924,0.00054246,120]
[320783836,1711555858740,-500.0,0.00054246,120]
[320783837,1711555858752,-2280.26,0.00054246,120]
[320783838,1711555858764,-1429.9,0.00054246,120]
[320783839,1711555858775,-1391.61,0.00054246,120]
[320783840,1711555858787,-500.0,0.00054246,120]
[320783841,1711555858798,-704.02,0.00054246,120]
[320783842,1711555858812,-500.0,0.00054246,120]
[320783843,1711555858823,-10580.92,0.00054246,120]
[320783844,1711555858835,-1140.85,0.00054246,120]
[320783845,1711555858847,-5917.63,0.00054246,120]
[320783846,1711555858859,-500.0,0.00054246,120]
[320783847,1711555858871,-2509.99,0.00054246,120]
[320783848,1711555858882,-996.67,0.00054246,120]
[320783849,1711555858893,-500.0,0.00054246,120]
[320783850,1711555858904,-552.78,0.00054246,120]
[320783851,1711555858916,-572.4,0.00054246,120]
[320783852,1711555858928,-1442.1,0.00054246,120]
[320783853,1711555858939,-3750.14,0.00054246,120]
[320783854,1711555858951,-413.16835978,0.00054246,120]
[320783855,1711555858962,-500.0,0.00054246,120]
[320783856,1711555858977,-1480.07,0.00054246,120]
[320783857,1711555858989,-500.0,0.00054246,120]
[320783858,1711555859000,-4030.03,0.00054246,120]
[320783859,1711555859012,-1488.27,0.00054246,120]
[320783860,1711555859023,-1000.0,0.00054246,14]
[320783861,1711555859033,-2545.5,0.00054246,120]
[320783862,1711555859044,-500.0,0.00054246,120]
[320783863,1711555859055,-500.0,0.00054246,120]
[320783864,1711555859065,-500.0,0.00054246,120]
[320783865,1711555859076,-2130.92,0.00054246,120]
[320783866,1711555859087,-500.0,0.00054246,120]
[320783867,1711555859097,-1661.29,0.00054246,120]
[320783868,1711555859109,-3408.52,0.00054246,120]
[320783869,1711555859120,-500.0,0.00054246,120]
[320783870,1711555859131,-500.0,0.00054246,120]
[320783871,1711555859142,-1608.7,0.00054246,120]
[320783872,1711555859156,-500.0,0.00054246,120]
[320783873,1711555859168,-505.29395325,0.00054246,120]
[320783874,1711555859180,-1509.47,0.00054246,120]
[320783875,1711555859190,-500.0,0.00054246,120]
[320783876,1711555859201,-3655.31,0.00054246,120]
[320783877,1711555859211,-4663.33,0.00054246,120]
[320783878,1711555859224,-975.3,0.00054246,120]
[320783879,1711555859236,-608.93,0.00054246,120]
[320783880,1711555859246,-1974.63,0.00054246,120]
[320783881,1711555859262,-951.26,0.00054246,120]
[320783882,1711555859272,-10765.87,0.00054246,120]
[320783883,1711555859282,-3909.78,0.00054246,120]
[320783884,1711555859292,-2649.69,0.00054246,120]
[320783885,1711555859302,-1021.43,0.00054246,120]